[Event "ISR-chT U14 2018"]
[Site "Nir HaEmek"]
[Date "2018.08.15"]
[Round "9"]
[White "Aizenberg, Benny"]
[Black "Milikow, Yoav"]
[Result "0-1"]
[ECO "C01"]
[WhiteElo "2149"]
[BlackElo "2186"]
[Annotator "NA"]
[PlyCount "159"]
[EventDate "2018.08.12"]
[EventType "team-tourn"]
[EventCountry "ISR"]
[SourceTitle "playchess.com"]
[Source "ChessBase"]
[SourceQuality "1"]
[TimeControl "3060+10"]

1. e4 {[%emt 0:00:51]} e6 {[%emt 0:00:52]} 2. d4 {[%emt 0:00:01]} d5 {[%emt 0:00:10]} 3. Bd3 {[%emt 0:00:01]} dxe4 {[%emt 0:00:09]} 4. Bxe4 {[%emt 0:00:01]} Nf6 {[%emt 0:00:12]} 5. Bf3 {[%emt 0:00:02]} c5 {[%emt 0:00:06]} 6. Ne2 {[%emt 0:00:01]} Nc6 {[%emt 0:00:08] C01: Französische Verteidigung (Abtauschvariante)} 7. Be3 {[%emt 0:00:01]} cxd4 {[%emt 0:00:06]} (7... Nd5 8. Bxd5 Qxd5 9. Nbc3 Qxg2 10. Rg1 Qf3 11. Nb5 Rb8 12. dxc5 Bd7 13. Nc7+ Kd8 14. Nb5 {0-1 (54) Kramnik,V (2808)-Caruana,F (2808) Stavanger 2017}) 8. Nxd4 {[%emt 0:00:09]} Ne5 {[%emt 0:00:14]} 9. O-O {[%emt 0:00:05]} Be7 {[%emt 0:00:04]} 10. Nc3 {[%emt 0:00:08]} O-O {[%emt 0:01:09]} 11. Re1 $146 {[%emt 0:00:14]} ({Vorgänger:} 11. Be2 Bd7 12. f4 Nc6 13. Bf3 Nxd4 14. Bxd4 Qc7 15. Be5 Qb6+ 16. Kh1 Rfd8 17. Qe2 Bc6 18. Bxc6 Qxc6 19. Rad1 a6 {½-½ (19) Potapov,P (2479)-Vastrukhin,O (2409) Moscow 2018}) 11... Nc4 {[%emt 0:00:09]} 12. Bc1 {[%emt 0:00:11]} Qb6 {[%emt 0:00:42]} 13. Nb3 {[%emt 0:01:13]} Bd7 {[%emt 0:01:54]} 14. Ne4 {[%emt 0:02:26]} Rfd8 {[%emt 0:02:23]} 15. Qd4 {[%emt 0:05:15]} Rac8 {[%emt 0:07:44]} 16. Qxb6 {[%emt 0:00:20]} Nxb6 {[%emt 0:00:13]} 17. c3 {[%emt 0:00:05]} Bc6 {[%emt 0:01:38]} 18. Bg5 {[%emt 0:00:36]} Nc4 {[%emt 0:01:38]} 19. Re2 {[%emt 0:01:52]} Ne5 {[%emt 0:03:14]} 20. Nxf6+ {[%emt 0:00:07]} Bxf6 {[%emt 0:00:17]} 21. Bxc6 {[%emt 0:00:06]} Nxc6 {[%emt 0:01:07]} 22. Bxf6 {[%emt 0:00:52]} gxf6 {[%emt 0:00:03]} 23. g3 {[%emt 0:00:37]} Rd5 {[%emt 0:02:05]} 24. Rae1 {[%emt 0:00:21]} Rcd8 {[%emt 0:00:46]} 25. Kg2 {[%emt 0:00:27]} b6 {[%emt 0:00:58]} 26. Re4 {[%emt 0:00:52]} Ne5 {[%emt 0:04:02]} 27. R1e2 {[%emt 0:03:13]} b5 {[%emt 0:02:43]} 28. a4 {[%emt 0:06:54]} Rb8 {[%emt 0:01:32]} 29. a5 {[%emt 0:06:53]} Nc4 {[%emt 0:00:37]} 30. Nd4 {[%emt 0:20:07]} Nxa5 {[%emt 0:00:46]} 31. b4 {[%emt 0:00:01]} Nc4 {[%emt 0:01:30]} 32. Nxb5 {[%emt 0:00:16]} Rdxb5 {[%emt 0:00:43]} 33. Rxc4 {[%emt 0:00:04]} a5 {[%emt 0:00:25]} 34. bxa5 {[%emt 0:00:04]} Rxa5 {[%emt 0:00:03]} 35. Rc2 {[%emt 0:00:36]} Rbb5 {[%emt 0:00:28]} 36. Rc8+ {[%emt 0:00:23]} Kg7 {[%emt 0:00:03]} 37. c4 {[%emt 0:00:03]} Rc5 {[%emt 0:00:28]} 38. Rxc5 {[%emt 0:00:01]} Rxc5 {[%emt 0:00:07]} 39. Kf3 {[%emt 0:00:01]} Kf8 {[%emt 0:00:35]} 40. Ke4 {[%emt 0:00:05]} Ke7 {[%emt 0:00:09]} 41. Kd4 {[%emt 0:00:03]} Kd6 {[%emt 0:00:05]} 42. Rd2 {[%emt 0:00:33]} Ra5 {[%emt 0:00:51]} 43. Rb2 {[%emt 0:00:23]} Ra6 {[%emt 0:03:20]} 44. f4 {[%emt 0:01:22]} Ra1 {[%emt 0:03:09]} 45. Rd2 {[%emt 0:00:18]} Ra3 {[%emt 0:00:54]} 46. Rb2 {[%emt 0:00:09]} Ra1 {[%emt 0:00:08]} 47. Rb7 {[%emt 0:00:10]} Rd1+ {[%emt 0:00:23]} 48. Ke3 {[%emt 0:00:04]} Rh1 {[%emt 0:00:51]} 49. Rxf7 {[%emt 0:00:16]} Rxh2 {[%emt 0:00:26]} 50. g4 {[%emt 0:00:10]} Rh4 {[%emt 0:00:45]} 51. Kf3 {[%emt 0:00:11]} Rh3+ {[%emt 0:00:22]} 52. Ke4 {[%emt 0:00:02]} Rh4 {[%emt 0:00:22]} 53. Rg7 {[%emt 0:00:13]} Rxg4 {[%emt 0:01:01]} 54. Rxh7 {[%emt 0:00:02]} e5 {[%emt 0:00:25]} 55. Ke3 {[%emt 0:00:23]} Rxf4 {[%emt 0:00:11]} 56. Rh6 {[%emt 0:00:08]} Kc5 {[%emt 0:00:06]} 57. Kd3 {[%emt 0:00:01]} Rf3+ {[%emt 0:00:13]} 58. Ke4 {[%emt 0:00:03]} Rf4+ {[%emt 0:00:04]} 59. Kd3 {[%emt 0:00:01]} Rd4+ {[%emt 0:00:16]} 60. Ke3 {[%emt 0:00:01]} f5 {[%emt 0:00:15]} 61. Re6 {[%emt 0:00:37]} f4+ {[%emt 0:00:24]} 62. Ke2 {[%emt 0:00:17]} Re4+ {[%emt 0:00:06]} 63. Kd3 {[%emt 0:00:11]} Re3+ {[%emt 0:00:01]} 64. Kd2 {[%emt 0:00:00]} Kxc4 {[%emt 0:00:11]} 65. Ra6 {[%emt 0:00:20]} Kd5 {[%emt 0:00:04]} 66. Ra4 {[%emt 0:00:05]} Rb3 {[%emt 0:00:17]} 67. Ra5+ {[%emt 0:00:05]} Ke4 {[%emt 0:00:07]} 68. Ke2 {[%emt 0:00:11]} Rb2+ {[%emt 0:00:05]} 69. Ke1 {[%emt 0:00:02]} Rh2 {[%emt 0:00:08]} 70. Ra4+ {[%emt 0:00:01]} Kf3 {[%emt 0:00:08]} 71. Ra3+ {[%emt 0:00:03]} Kg4 {[%emt 0:00:06]} 72. Ra4 {[%emt 0:00:03]} Rb2 {[%emt 0:00:16]} 73. Rc4 {[%emt 0:00:23]} Kf5 {[%emt 0:00:19]} 74. Rc5 {[%emt 0:00:05]} f3 {[%emt 0:00:02]} 75. Ra5 {[%emt 0:00:04]} Kf4 {[%emt 0:00:03]} 76. Ra3 {[%emt 0:00:04]} e4 {[%emt 0:00:02]} 77. Ra4 {[%emt 0:00:01]} f2+ {[%emt 0:00:10]} 78. Kf1 {[%emt 0:00:01]} Kf3 {[%emt 0:00:07]} 79. Ra3+ {[%emt 0:01:29]} e3 {[%emt 0:05:15]} 80. Ra1 {[%emt 0:00:10]} 0-1

[Event "ISR-chT U14 2018"]
[Site "Nir HaEmek"]
[Date "2018.08.15"]
[Round "9"]
[White "Kochavi, Ori"]
[Black "Friedland, Eldar"]
[Result "1/2-1/2"]
[ECO "B11"]
[WhiteElo "2138"]
[BlackElo "1876"]
[Annotator "ChessBase"]
[PlyCount "105"]
[EventDate "2018.08.12"]
[EventType "team-tourn"]
[EventCountry "ISR"]
[SourceTitle "playchess.com"]
[Source "ChessBase"]
[SourceQuality "1"]
[TimeControl "3060+10"]

1. e4 {[%emt 0:00:56]} c6 {[%emt 0:00:54]} 2. Nf3 {[%emt 0:00:47]} d5 {[%emt 0:00:12]} 3. Nc3 {[%emt 0:00:03]} Nf6 {[%emt 0:00:03]} 4. e5 {[%emt 0:00:05]} Ne4 {[%emt 0:00:04]} 5. Ne2 {[%emt 0:00:02]} Qb6 {[%emt 0:00:05]} 6. d4 {[%emt 0:00:04]} e6 {[%emt 0:00:07]} 7. Ng3 {[%emt 0:00:19]} c5 {[%emt 0:00:32]} 8. c3 {[%emt 0:00:30]} Nc6 {[%emt 0:00:28]} 9. Be2 {[%emt 0:00:19]} Bd7 {[%emt 0:01:00]} 10. O-O {[%emt 0:01:59]} Be7 {[%emt 0:01:10]} 11. Qd3 {[%emt 0:08:49]} h6 {[%emt 0:03:45]} 12. Nxe4 {[%emt 0:00:53]} dxe4 {[%emt 0:00:05]} 13. Qxe4 {[%emt 0:00:04]} cxd4 {[%emt 0:03:39]} 14. Nxd4 {[%emt 0:02:36]} Nxd4 {[%emt 0:00:11]} 15. Qxd4 {[%emt 0:00:07]} Qxd4 {[%emt 0:04:50]} 16. cxd4 {[%emt 0:00:04]} Bc6 {[%emt 0:00:18]} 17. Be3 {[%emt 0:00:45]} Bd8 {[%emt 0:03:57]} 18. Rfc1 {[%emt 0:10:32]} a5 {[%emt 0:03:49]} 19. Rab1 {[%emt 0:05:30]} Bb6 {[%emt 0:09:46]} 20. b4 {[%emt 0:03:01]} a4 {[%emt 0:00:04]} 21. Rc3 {[%emt 0:01:52]} Bd5 {[%emt 0:04:47]} 22. Bc4 {[%emt 0:01:33]} Bxc4 {[%emt 0:03:58]} 23. Rxc4 {[%emt 0:00:35]} Kd7 {[%emt 0:00:04]} 24. Rbc1 {[%emt 0:05:24]} Rhc8 {[%emt 0:00:44]} 25. Kf1 {[%emt 0:00:06]} Bd8 {[%emt 0:07:02]} 26. Ke2 {[%emt 0:03:23]} b5 {[%emt 0:00:01]} 27. Rxc8 {[%emt 0:02:26]} Rxc8 {[%emt 0:00:02]} 28. Rxc8 {[%emt 0:00:01]} Kxc8 {[%emt 0:00:01]} 29. Kd3 {[%emt 0:00:01]} Kd7 {[%emt 0:01:44]} 30. Ke4 {[%emt 0:00:01]} a3 {[%emt 0:00:31]} 31. Bc1 {[%emt 0:00:24]} Be7 {[%emt 0:00:01]} 32. Bxa3 {[%emt 0:00:01]} f5+ {[%emt 0:00:11]} 33. exf6 {[%emt 0:00:40]} gxf6 {[%emt 0:00:01]} 34. Bc1 {[%emt 0:00:05]} f5+ {[%emt 0:01:04]} 35. Kd3 {[%emt 0:00:01]} h5 {[%emt 0:00:29]} 36. a3 {[%emt 0:00:03]} Kc6 {[%emt 0:00:02]} 37. f3 {[%emt 0:01:40]} Kd5 {[%emt 0:00:01]} 38. h3 {[%emt 0:00:05]} Bf6 {[%emt 0:00:01]} 39. Be3 {[%emt 0:00:59]} h4 {[%emt 0:00:01]} 40. Bf2 {[%emt 0:00:11]} Bg5 {[%emt 0:00:26]} 41. f4 {[%emt 0:00:37]} Bf6 {[%emt 0:01:21]} 42. Be3 {[%emt 0:00:01]} Bg7 {[%emt 0:00:10]} 43. Bf2 {[%emt 0:00:04]} Bf6 {[%emt 0:00:01]} 44. Bg1 {[%emt 0:00:23]} Bg7 {[%emt 0:00:04]} 45. Be3 {[%emt 0:00:09]} Bh8 {[%emt 0:00:09]} 46. a4 {[%emt 0:00:07]} bxa4 {[%emt 0:00:04]} 47. b5 {[%emt 0:00:01]} a3 {[%emt 0:00:13]} 48. Bc1 {[%emt 0:00:01]} a2 {[%emt 0:00:33]} 49. Bb2 {[%emt 0:00:00]} Bf6 {[%emt 0:00:03]} 50. Ba1 {[%emt 0:00:04]} Bd8 {[%emt 0:00:03]} 51. Bc3 {[%emt 0:00:42]} Bb6 {[%emt 0:00:08]} 52. Bb2 {[%emt 0:00:15]} Bc7 {[%emt 0:00:05]} 53. Ba1 {[%emt 0:00:30] Ke5 [%clk 0:00:00] Ke4+*} 1/2-1/2

[Event "ISR-chT U14 2018"]
[Site "Nir HaEmek"]
[Date "2018.08.15"]
[Round "9"]
[White "Ben Ari, Yannay"]
[Black "Gorshtein, Asaf"]
[Result "1-0"]
[ECO "B13"]
[WhiteElo "2022"]
[BlackElo "2137"]
[Annotator "NA"]
[PlyCount "175"]
[EventDate "2018.08.12"]
[EventType "team-tourn"]
[EventCountry "ISR"]
[SourceTitle "playchess.com"]
[Source "ChessBase"]
[SourceQuality "1"]
[TimeControl "3060+10"]

1. e4 {[%emt 0:00:53]} c6 {[%emt 0:00:52]} 2. d4 {[%emt 0:00:09]} d5 {[%emt 0:00:05]} 3. exd5 {[%emt 0:00:06]} cxd5 {[%emt 0:00:03]} 4. Bd3 {[%emt 0:00:10]} Nc6 {[%emt 0:00:07]} 5. c3 {[%emt 0:00:04]} Nf6 {[%emt 0:00:06]} 6. Bf4 {[%emt 0:00:06]} g6 {[%emt 0:00:07]} 7. Nf3 {[%emt 0:00:17]} Bg7 {[%emt 0:00:08]} 8. Nbd2 {[%emt 0:00:12]} O-O {[%emt 0:00:10] B13: Caro-Kann: Exchange Variation and Panov-Botvinnik Attack} (8... Bf5 9. Bxf5 gxf5 10. Ne5 e6 11. Qe2 Rc8 12. Nb3 O-O 13. h3 Ne4 14. Nd3 Ne7 15. Be5 Ng6 16. Bxg7 Kxg7 {1-0 (38) Robson,R (2645)-Pantsulaia,L (2605) chess.com INT 2018}) 9. Qe2 {[%emt 0:00:08]} a6 {[%emt 0:05:00]} 10. h3 {[%emt 0:04:31]} Re8 $146 {[%emt 0:07:19]} ({Predecessor:} 10... b5 11. a3 Na5 12. Ne5 Bb7 13. h4 Nc4 14. Nb3 Nxe5 15. dxe5 Nh5 16. Bh2 Bh6 17. Nd4 Bc8 {½-½ (57) Nikolovski,N (2293)-Jovic,S (2168) Novi Sad 2015}) 11. Ne5 {[%emt 0:04:30]} Nxe5 {[%emt 0:03:15]} 12. dxe5 {[%emt 0:00:19]} Nd7 {[%emt 0:01:27]} 13. h4 {[%emt 0:03:47]} Nc5 {[%emt 0:09:44]} 14. Bc2 {[%emt 0:02:52]} Qb6 {[%emt 0:00:59]} 15. Rb1 {[%emt 0:07:10]} Ne6 {[%emt 0:04:03]} 16. Bg3 {[%emt 0:01:49]} Bd7 {[%emt 0:04:49]} 17. h5 {[%emt 0:03:43]} d4 {[%emt 0:01:45]} 18. f4 {[%emt 0:10:38]} Rad8 {[%emt 0:06:23]} 19. f5 {[%emt 0:03:21]} gxf5 {[%emt 0:01:42]} 20. h6 {[%emt 0:00:07]} Bh8 {[%emt 0:01:37]} 21. Bxf5 {[%emt 0:00:48]} Nf8 {[%emt 0:00:57]} 22. Nc4 {[%emt 0:05:51]} Qc6 {[%emt 0:00:28]} 23. Be4 {[%emt 0:00:20]} Qe6 {[%emt 0:01:35]} 24. cxd4 {[%emt 0:00:57]} Bc6 {[%emt 0:00:41]} 25. Bxc6 {[%emt 0:00:33]} Qxc6 {[%emt 0:00:27]} 26. Rd1 {[%emt 0:00:03]} Ng6 {[%emt 0:00:34]} 27. O-O {[%emt 0:01:03]} b5 {[%emt 0:00:14]} 28. Ne3 {[%emt 0:00:32]} e6 {[%emt 0:00:28]} 29. Ng4 {[%emt 0:00:17]} Qd5 $2 {[%emt 0:00:18]} (29... Qb7 30. Nf2 Qa7) 30. Qf2 {[%emt 0:00:09]} Qb7 {[%emt 0:00:20]} 31. Nf6+ {[%emt 0:00:03]} Kf8 {[%emt 0:00:07]} 32. Nxh7+ {[%emt 0:00:13]} Kg8 {[%emt 0:00:08]} 33. Nf6+ {[%emt 0:00:08]} Kf8 {[%emt 0:00:01]} 34. Nxe8 {[%emt 0:00:06]} Rxe8 {[%emt 0:00:12]} 35. Rd3 {[%emt 0:00:25]} Re7 {[%emt 0:00:19]} 36. Rf3 {[%emt 0:00:01]} Qd7 {[%emt 0:00:11]} 37. Kh1 {[%emt 0:00:16]} Kg8 {[%emt 0:00:09]} 38. Qc2 {[%emt 0:00:20]} Re8 {[%emt 0:00:08] [#]} 39. h7+ $1 {[%emt 0:00:10]} Kg7 {[%emt 0:00:08]} 40. Bf4 {[%emt 0:00:11]} Qe7 {[%emt 0:00:17]} 41. g3 {[%emt 0:00:17]} Rf8 {[%emt 0:00:08]} 42. Be3 {[%emt 0:00:02]} Kxh7 {[%emt 0:00:13]} 43. Qh2+ {[%emt 0:00:09]} Kg8 {[%emt 0:00:01]} 44. Qh5 {[%emt 0:00:03]} Bg7 {[%emt 0:00:13]} 45. Bh6 {[%emt 0:00:16]} Qb7 {[%emt 0:00:15]} 46. Kh2 {[%emt 0:00:04]} Qe4 {[%emt 0:00:11]} 47. Be3 {[%emt 0:00:14]} Qb7 {[%emt 0:00:09]} 48. Kg2 {[%emt 0:00:06]} Rc8 {[%emt 0:00:04]} 49. R1f2 {[%emt 0:00:17]} Rc7 {[%emt 0:00:11]} 50. Kh2 {[%emt 0:00:17]} Qe4 {[%emt 0:00:14]} 51. Qh3 {[%emt 0:00:09]} Qd5 {[%emt 0:00:11]} 52. Qg2 {[%emt 0:00:07]} Qxa2 {[%emt 0:00:10]} 53. Rc2 {[%emt 0:00:11]} Rxc2 {[%emt 0:00:06]} 54. Qxc2 {[%emt 0:00:01]} Qd5 {[%emt 0:00:01]} 55. Kg2 {[%emt 0:00:04]} Bxe5 {[%emt 0:00:22]} 56. dxe5 {[%emt 0:00:03]} Nxe5 {[%emt 0:00:01]} 57. Qe2 {[%emt 0:00:03]} a5 {[%emt 0:00:17]} 58. Kf2 {[%emt 0:00:06]} Nxf3 {[%emt 0:00:13]} 59. Qxf3 {[%emt 0:00:01]} Qb3 {[%emt 0:00:14]} 60. Bd4 {[%emt 0:00:32]} Qc2+ {[%emt 0:00:02]} 61. Kg1 {[%emt 0:00:03]} Qc1+ {[%emt 0:00:05]} 62. Qf1 {[%emt 0:00:22]} Qd2 {[%emt 0:00:16]} (62... Qc7 $142 63. Qe1 Kf8) 63. Qf6 {[%emt 0:00:03]} Qd1+ {[%emt 0:00:03]} 64. Kh2 {[%emt 0:00:24]} Qe2+ {[%emt 0:00:07]} 65. Kh3 {[%emt 0:00:04]} Qh5+ {[%emt 0:00:06]} 66. Qh4 {[%emt 0:00:09]} Qxh4+ $2 {[%emt 0:00:18]} (66... Qh7 67. Bf6 a4) 67. Kxh4 {[%emt 0:00:07]} f5 {[%emt 0:00:14]} 68. Kg5 {[%emt 0:00:14]} Kf7 {[%emt 0:00:06]} 69. Bb6 {[%emt 0:00:01]} a4 {[%emt 0:00:04]} 70. Bc5 {[%emt 0:00:22]} Kg7 {[%emt 0:00:05]} 71. Kf4 {[%emt 0:00:11]} Kf6 {[%emt 0:00:02]} 72. Bd4+ {[%emt 0:00:01]} Kf7 {[%emt 0:00:11]} 73. Ke5 {[%emt 0:00:09]} Ke7 {[%emt 0:00:21]} 74. Bc5+ {[%emt 0:00:00]} Kf7 {[%emt 0:00:24]} 75. Ba3 {[%emt 0:00:04]} Kg6 {[%emt 0:00:10]} 76. Kxe6 {[%emt 0:00:02]} Kg5 {[%emt 0:00:01]} 77. Bd6 {[%emt 0:00:04]} Kg4 {[%emt 0:00:04]} 78. Kd5 {[%emt 0:00:02]} b4 {[%emt 0:00:07]} 79. Bxb4 {[%emt 0:00:23]} Kxg3 {[%emt 0:00:03]} 80. Bd6+ {[%emt 0:00:07]} f4 {[%emt 0:00:08]} 81. Kc4 {[%emt 0:00:07]} a3 {[%emt 0:00:18]} 82. bxa3 {[%emt 0:00:04]} Kf3 {[%emt 0:00:04]} 83. a4 {[%emt 0:00:01]} Ke4 {[%emt 0:00:01]} 84. a5 {[%emt 0:00:03]} f3 {[%emt 0:00:01]} 85. Bc5 {[%emt 0:00:06]} Ke5 {[%emt 0:00:09]} 86. a6 {[%emt 0:00:02]} f2 {[%emt 0:00:06]} 87. Bxf2 {[%emt 0:00:02]} Kd6 {[%emt 0:00:01]} 88. a7 {[%emt 0:00:02] Kd5+ [%clk 0:00:00]} 1-0

[Event "ISR-chT U14 2018"]
[Site "Nir HaEmek"]
[Date "2018.08.15"]
[Round "9"]
[White "Sherman, Reem"]
[Black "Milikow, Elie"]
[Result "0-1"]
[ECO "B33"]
[WhiteElo "1757"]
[BlackElo "2173"]
[Annotator "NA"]
[PlyCount "78"]
[EventDate "2018.08.12"]
[EventType "team-tourn"]
[EventCountry "ISR"]
[SourceTitle "playchess.com"]
[Source "ChessBase"]
[SourceQuality "1"]
[TimeControl "3060+10"]

1. e4 {[%emt 0:00:55]} c5 {[%emt 0:00:55]} 2. Nf3 {[%emt 0:00:06]} Nc6 {[%emt 0:00:04]} 3. d4 {[%emt 0:00:06]} cxd4 {[%emt 0:00:06]} 4. Nxd4 {[%emt 0:00:05]} Nf6 {[%emt 0:00:08]} 5. Nc3 {[%emt 0:00:06]} e5 {[%emt 0:00:09]} 6. Ndb5 {[%emt 0:00:10]} d6 {[%emt 0:00:09]} 7. Bg5 {[%emt 0:00:09]} a6 {[%emt 0:00:07]} 8. Na3 {[%emt 0:00:07]} b5 {[%emt 0:00:07]} 9. Bxf6 {[%emt 0:00:08]} gxf6 {[%emt 0:00:08]} 10. Nd5 {[%emt 0:00:04]} f5 {[%emt 0:01:37]} 11. exf5 {[%emt 0:00:07]} Bxf5 {[%emt 0:00:14]} 12. c3 {[%emt 0:00:08]} Be6 {[%emt 0:00:29]} 13. Nc2 {[%emt 0:00:50]} Bg7 {[%emt 0:01:54]} 14. Nce3 {[%emt 0:00:12]} O-O {[%emt 0:00:43]} 15. Bd3 {[%emt 0:00:08]} f5 {[%emt 0:01:25]} 16. O-O {[%emt 0:00:18]} Ne7 {[%emt 0:06:56]} 17. Nxe7+ {[%emt 0:00:34]} Qxe7 {[%emt 0:00:08]} 18. Bxf5 {[%emt 0:00:09]} Bxf5 {[%emt 0:09:04]} 19. Nxf5 {[%emt 0:00:06]} Qe6 {[%emt 0:00:28]} 20. Nxg7 {[%emt 0:01:43]} Kxg7 {[%emt 0:00:07]} 21. a4 {[%emt 0:00:15]} Rab8 {[%emt 0:02:14]} 22. axb5 {[%emt 0:00:34]} axb5 {[%emt 0:00:10]} 23. Ra7+ {[%emt 0:00:18]} Rf7 {[%emt 0:00:10]} 24. Ra6 {[%emt 0:01:14]} Rf6 {[%emt 0:00:46]} 25. Qh5 {[%emt 0:01:54]} Qf7 {[%emt 0:07:37]} 26. Qg5+ {[%emt 0:03:43]} Rg6 {[%emt 0:00:26]} 27. Qe3 {[%emt 0:00:19]} Kh8 {[%emt 0:05:14]} 28. Rd1 {[%emt 0:00:39]} Qb7 {[%emt 0:00:42]} 29. g3 {[%emt 0:02:17]} Qxa6 {[%emt 0:00:14]} 30. Qe4 {[%emt 0:00:44]} Qb6 {[%emt 0:00:55]} 31. Qf5 {[%emt 0:00:33]} Kg8 {[%emt 0:00:43]} 32. Rf1 {[%emt 0:01:34]} Rf8 {[%emt 0:00:17]} 33. Qe4 {[%emt 0:00:13]} Rgf6 {[%emt 0:00:24]} 34. Qe2 {[%emt 0:00:54]} e4 {[%emt 0:01:21]} 35. b4 {[%emt 0:01:24]} Rf3 {[%emt 0:01:44]} 36. c4 {[%emt 0:03:11]} Qd4 {[%emt 0:05:52]} 37. cxb5 {[%emt 0:03:13]} e3 {[%emt 0:00:39]} 38. b6 {[%emt 0:02:35]} Rxf2 {[%emt 0:00:38]} 39. Rxf2 {[%emt 0:01:03]} exf2+ {[%emt 0:00:07]} 0-1

[Event "ISR-chT U14 2018"]
[Site "Nir HaEmek"]
[Date "2018.08.15"]
[Round "9"]
[White "Sobel, Ido"]
[Black "Shteiman, Yuval"]
[Result "0-1"]
[ECO "C13"]
[WhiteElo "1727"]
[BlackElo "1584"]
[Annotator "NA"]
[PlyCount "54"]
[EventDate "2018.08.12"]
[EventType "team-tourn"]
[EventCountry "ISR"]
[SourceTitle "playchess.com"]
[Source "ChessBase"]
[SourceQuality "1"]
[TimeControl "3060+10"]

1. e4 {[%emt 0:00:53]} e6 {[%emt 0:00:55]} 2. d4 {[%emt 0:00:04]} d5 {[%emt 0:00:04]} 3. Nc3 {[%emt 0:00:04]} dxe4 {[%emt 0:00:09]} 4. Nxe4 {[%emt 0:00:07]} Nd7 {[%emt 0:00:14]} 5. Nf3 {[%emt 0:00:27]} Ngf6 {[%emt 0:00:05]} 6. Nxf6+ {[%emt 0:00:06]} Nxf6 {[%emt 0:00:07]} 7. Bg5 {[%emt 0:00:34]} Be7 {[%emt 0:00:09]} 8. Bxf6 {[%emt 0:02:26]} Bxf6 {[%emt 0:00:08]} 9. Bd3 {[%emt 0:00:48]} O-O {[%emt 0:00:10]} 10. Qe2 {[%emt 0:02:11]} c5 {[%emt 0:05:16]} 11. O-O-O {[%emt 0:15:31]} cxd4 {[%emt 0:06:19]} 12. Kb1 {[%emt 0:01:27]} Qb6 {[%emt 0:02:47]} 13. g4 {[%emt 0:02:57]} g6 {[%emt 0:04:42]} 14. Ne5 {[%emt 0:03:19]} Qc5 {[%emt 0:06:24]} 15. f4 {[%emt 0:00:52]} Bxe5 {[%emt 0:05:01]} 16. fxe5 {[%emt 0:00:01]} Bd7 {[%emt 0:01:22]} 17. g5 {[%emt 0:02:59]} Bc6 {[%emt 0:01:23]} 18. Rhg1 {[%emt 0:00:25]} a5 {[%emt 0:01:26]} 19. Rg3 {[%emt 0:13:07]} a4 {[%emt 0:01:17]} 20. Qe1 {[%emt 0:02:50]} Ra5 {[%emt 0:00:40]} 21. Rh3 {[%emt 0:00:32]} Qxe5 {[%emt 0:03:32]} 22. Qh4 {[%emt 0:00:55]} Qg7 {[%emt 0:00:09]} 23. Re1 {[%emt 0:00:24]} Rd8 {[%emt 0:00:28]} 24. Re2 {[%emt 0:00:30]} Rdd5 {[%emt 0:00:59]} 25. Rf2 {[%emt 0:00:35]} Rxg5 {[%emt 0:00:32]} 26. a3 {[%emt 0:00:46]} Rad5 {[%emt 0:02:35]} 27. Bc4 {[%emt 0:00:13]} Rde5 {[%emt 0:00:58]} 0-1

[Event "ISR-chT U14 2018"]
[Site "Nir HaEmek"]
[Date "2018.08.15"]
[Round "9"]
[White "Yusupoff, Yoav"]
[Black "Sokolovsky, Yahli"]
[Result "1-0"]
[ECO "A24"]
[WhiteElo "1634"]
[BlackElo "2062"]
[Annotator "NA"]
[PlyCount "44"]
[EventDate "2018.08.12"]
[EventType "team-tourn"]
[EventCountry "ISR"]
[SourceTitle "playchess.com"]
[Source "ChessBase"]
[SourceQuality "1"]
[TimeControl "3060+10"]

1. c4 {[%emt 0:00:51]} Nf6 {[%emt 0:01:03]} 2. Nc3 {[%emt 0:00:10]} g6 {[%emt 0:00:07]} 3. g3 {[%emt 0:00:25]} Bg7 {[%emt 0:00:14]} 4. Bg2 {[%emt 0:00:05]} O-O {[%emt 0:00:05]} 5. d3 {[%emt 0:00:32]} d6 {[%emt 0:00:31]} 6. e4 {[%emt 0:00:17]} e5 {[%emt 0:00:17]} 7. Rb1 {[%emt 0:01:34]} a5 {[%emt 0:00:39]} 8. a3 {[%emt 0:00:11]} Be6 {[%emt 0:00:48]} 9. Nge2 {[%emt 0:00:20]} c6 {[%emt 0:01:20]} 10. O-O {[%emt 0:02:24]} d5 {[%emt 0:01:13]} 11. Qb3 {[%emt 0:03:17]} dxc4 {[%emt 0:09:16]} 12. Qxb7 {[%emt 0:01:25]} cxd3 {[%emt 0:10:35]} 13. Qxa8 {[%emt 0:04:35]} dxe2 {[%emt 0:01:02]} 14. Re1 {[%emt 0:00:18]} Qc7 {[%emt 0:05:55]} 15. Be3 {[%emt 0:02:06]} c5 {[%emt 0:00:14]} 16. Na4 {[%emt 0:06:19]} Nfd7 {[%emt 0:06:20]} 17. Rbc1 {[%emt 0:02:48]} Rd8 {[%emt 0:00:41]} 18. Nxc5 {[%emt 0:04:31] Nxc5Bxc5 [%clk 0:21:27]} Bc4 {[%emt 0:11:32]} 19. Qa7 {[%emt 0:03:37]} Qxa7 {[%emt 0:00:35] Bxa7 [%clk 0:18:29]} 20. Bh6 {[%emt 0:17:51] Be3 [%clk 0:17:13] Bxe3 [%clk 0:00:52] fxe3 [%clk 0:17:22]} Ba6 {[%emt 0:00:51]} 21. Rc2 {[%emt 0:00:00] Rd6 [%clk 0:00:20] Bf3 [%clk 0:15:22] Nd7 [%clk 0:00:15] Bxe2 [%clk 0:14:55]} Nf6 {[%emt 0:00:56] Bxa6 [%clk 0:14:34] Rxa6 [%clk 0:00:25]} 22. Rec1 {[%emt 0:00:00] Kg7 [%clk 0:00:14] Rc6 [%clk 0:12:33] Ra8 [%clk 0:00:24]} Rc8 {[%emt 0:00:00] Ra7 [%clk 0:00:28] R8c7 [%clk 0:12:27] Ra8 [%clk 0:00:28] Re7 [%clk 0:12:29]} 1-0